bitfinex/quotes_BTCUSD_20251029
["timestamp","ask_amount","ask_price","bid_price","bid_amount"]
[1761762291381,1.17945,111550.0,111540.0,1.53293132]
[1761762292927,1.17945,111550.0,111540.0,0.80370608]
[1761762293090,1.17945,111550.0,111540.0,1.53293132]
[1761762294086,1.17945,111550.0,111540.0,0.80370608]
[1761762294708,1.17945,111550.0,111540.0,1.53293132]
[1761762295577,1.17945,111550.0,111540.0,1.54293131]
[1761762297348,1.17945,111550.0,111540.0,0.81370607]
[1761762297569,1.17945,111550.0,111540.0,0.71388707]
[1761762297785,1.17945,111550.0,111540.0,0.68694688]
[1761762300867,1.17945,111550.0,111540.0,1.41617212]
[1761762301091,1.17945,111550.0,111540.0,0.34694688]
[1761762302296,1.17945,111550.0,111540.0,0.30843688]
[1761762302297,1.2057,111550.0,111540.0,0.30843688]
[1761762302514,1.40536179,111550.0,111540.0,0.30843688]
[1761762302754,1.44295179,111550.0,111540.0,0.28112688]
[1761762303161,1.44295179,111550.0,111540.0,0.27612688]
[1761762303367,1.40436179,111550.0,111540.0,0.29843688]
[1761762303591,1.40436179,111550.0,111540.0,0.30143688]
[1761762303809,1.22507,111550.0,111540.0,0.30143688]
[1761762304028,1.17845,111550.0,111540.0,0.33594688]
[1761762304245,1.17845,111550.0,111540.0,0.33794688]
[1761762304456,1.2047,111550.0,111540.0,0.30043688]
[1761762304677,1.38399179,111550.0,111540.0,0.12112901]
[1761762304896,1.40067179,111550.0,111540.0,0.29743688]
[1761762305167,2.16748703,111550.0,111540.0,0.002]
[1761762305406,2.50748703,111550.0,111540.0,0.002]
[1761762305617,5.53500965,111550.0,111540.0,0.004]
[1761762306040,5.50748703,111550.0,111540.0,0.002]
[1761762306255,0.51930787,111540.0,111520.0,0.18830682]
[1761762306495,0.22594394,111530.0,111510.0,0.24446391]
[1761762306703,0.22594394,111530.0,111520.0,0.17934002]
[1761762307110,0.26281394,111530.0,111520.0,0.17934002]
[1761762307323,0.99203918,111530.0,111510.0,0.29677292]
[1761762307541,0.02397,111520.0,111510.0,0.32065292]
[1761762307743,0.70776935,111530.0,111520.0,0.17934002]
[1761762307952,0.23656394,111530.0,111520.0,0.17934002]
[1761762308105,0.26053394,111530.0,111520.0,0.17934002]
[1761762308802,0.17934002,111520.0,111510.0,0.29677292]
[1761762309042,0.20331002,111520.0,111510.0,0.32065292]
[1761762309248,0.24018002,111520.0,111510.0,0.29677292]
[1761762309458,0.71138543,111520.0,111510.0,0.10844901]
[1761762309670,0.17937219,111500.0,111490.0,0.00061693]
[1761762309880,0.6922476,111500.0,111490.0,0.00061693]
[1761762310085,0.7291176,111500.0,111490.0,0.00061693]
[1761762310298,0.19301317,111510.0,111490.0,0.17166594]
[1761762310510,0.19301317,111510.0,111500.0,0.02388]
[1761762310511,0.55698317,111510.0,111500.0,0.02388]
[1761762310716,0.20334219,111500.0,111490.0,0.31227385]
[1761762310918,0.17937219,111500.0,111490.0,0.35105385]
[1761762311120,1.04108858,111510.0,111490.0,0.35205385]
[1761762311508,0.17937219,111500.0,111490.0,0.31227385]
[1761762312176,0.56988317,111510.0,111490.0,0.36809853]
[1761762312717,0.53705611,111510.0,111500.0,0.20478219]
[1761762313070,0.53705611,111510.0,111500.0,0.20378219]
[1761762313414,0.04717677,111520.0,111500.0,0.2936012]
[1761762313620,0.54531002,111520.0,111510.0,0.20376611]
[1761762313831,0.20531002,111520.0,111510.0,0.20376611]
[1761762314040,0.20531002,111520.0,111510.0,0.25679984]
[1761762314041,0.02597,111520.0,111510.0,0.25679984]
[1761762314244,0.20531002,111520.0,111510.0,0.25679984]
[1761762314451,0.71784554,111530.0,111510.0,0.33152512]
[1761762314828,0.24664013,111530.0,111510.0,0.33152512]
[1761762314970,0.17934002,111520.0,111510.0,0.33152512]
[1761762315172,0.25547275,111530.0,111510.0,0.33152512]
[1761762315537,0.59547275,111530.0,111510.0,0.33152512]
[1761762315965,0.40731619,111530.0,111510.0,0.35168909]
[1761762316184,0.17930787,111540.0,111530.0,0.17932394]
[1761762316405,0.21728787,111540.0,111530.0,0.17932394]
[1761762316619,0.19023394,111530.0,111520.0,0.08981901]
[1761762316831,0.03688,111530.0,111520.0,0.26915903]
[1761762317036,0.21620394,111530.0,111520.0,0.29356903]
[1761762317244,0.03688,111530.0,111520.0,0.29356903]
[1761762317479,0.21620394,111530.0,111520.0,0.29356903]
[1761762317689,0.25418394,111530.0,111520.0,0.08981901]
[1761762317936,0.72538935,111530.0,111520.0,0.27115903]
[1761762318146,0.03688,111530.0,111520.0,0.29556903]
[1761762319005,0.68849328,111540.0,111530.0,0.17932394]
[1761762319176,0.21728787,111540.0,111530.0,0.17932394]
[1761762319395,0.24325787,111540.0,111530.0,0.17932394]
[1761762319767,0.20527787,111540.0,111530.0,0.17932394]
[1761762319931,0.24325787,111540.0,111520.0,0.30909903]
[1761762320132,0.20529394,111530.0,111520.0,0.29356903]
[1761762320373,0.02597,111530.0,111520.0,0.29356903]
[1761762320789,0.21728787,111540.0,111520.0,0.29356903]
[1761762321000,0.21728787,111540.0,111520.0,0.34555232]
[1761762321201,0.21728787,111540.0,111520.0,0.34655232]
[1761762321398,0.21728787,111540.0,111520.0,0.33150903]
[1761762321616,0.21728787,111540.0,111530.0,0.001]
[1761762321790,0.02597,111540.0,111530.0,0.22215394]
[1761762321990,0.17930787,111540.0,111530.0,0.22215394]
[1761762322376,0.20527787,111540.0,111530.0,0.31197295]
[1761762322576,0.20527787,111540.0,111530.0,0.31097295]
[1761762322785,0.71446328,111540.0,111530.0,0.26914295]
[1761762323147,0.20527787,111540.0,111530.0,0.29355295]
[1761762323347,0.17930787,111540.0,111530.0,0.33249295]
[1761762323508,1.86637993,111550.0,111530.0,0.33249295]
[1761762323673,1.73517452,111550.0,111540.0,0.02441]
[1761762324134,1.76114452,111550.0,111540.0,0.20371787]
[1761762324334,1.70044179,111550.0,111540.0,0.24165787]
[1761762324582,1.52115,111550.0,111540.0,0.24165787]
[1761762324782,1.18115,111550.0,111540.0,0.33147688]
[1761762324985,1.18115,111550.0,111540.0,0.38255696]
[1761762325785,1.18115,111550.0,111540.0,0.85476237]
[1761762325981,1.18215,111550.0,111540.0,0.85476237]
[1761762326187,1.18115,111550.0,111540.0,0.85476237]
[1761762326361,1.18115,111550.0,111540.0,0.85376237]
[1761762326628,1.18115,111550.0,111540.0,0.85576237]
[1761762326848,1.18115,111550.0,111540.0,0.85776237]
[1761762327944,0.98719033,111550.0,111540.0,0.85776237]
[1761762328871,0.98719033,111550.0,111540.0,0.38655696]
[1761762329097,0.98719033,111550.0,111540.0,0.29753688]
[1761762329318,0.98719033,111550.0,111540.0,0.33547688]
[1761762334019,0.99039102,111550.0,111540.0,0.33547688]
[1761762334425,0.99039102,111550.0,111540.0,0.80668229]
[1761762334844,0.99039102,111550.0,111540.0,1.14668229]
[1761762334996,0.99039102,111550.0,111540.0,1.24650129]
[1761762335197,0.09285776,111550.0,111540.0,1.15668228]
[1761762335460,0.09285776,111550.0,111540.0,1.16668227]
[1761762335843,0.09285776,111550.0,111540.0,1.16268227]
[1761762336000,0.09285776,111550.0,111540.0,1.16668227]
[1761762336201,0.09285776,111550.0,111540.0,1.17268227]
[1761762336646,0.09285776,111550.0,111540.0,1.15268229]
[1761762344642,0.09285776,111550.0,111540.0,0.68147688]
[1761762344856,0.09285776,111550.0,111540.0,1.15268229]
[1761762345482,0.09285776,111550.0,111540.0,1.50997974]
[1761762345748,0.09285776,111550.0,111540.0,1.09572831]
[1761762345937,0.09285776,111550.0,111540.0,1.09172831]
[1761762346144,0.09285776,111550.0,111540.0,1.08872831]
[1761762346340,0.09285776,111550.0,111540.0,1.09272831]
[1761762346766,0.09285776,111550.0,111540.0,0.33547688]
[1761762346982,0.09285776,111550.0,111540.0,0.33847688]
[1761762347214,0.09285776,111550.0,111540.0,0.33852688]
[1761762348139,0.09285776,111550.0,111540.0,0.75277831]
[1761762348398,0.09285776,111550.0,111540.0,0.33152688]
[1761762348817,0.09285776,111550.0,111540.0,0.33652688]
[1761762349035,0.09285776,111550.0,111540.0,0.74877831]
[1761762349246,0.09285776,111550.0,111540.0,0.33352688]
[1761762349688,0.09285776,111550.0,111540.0,0.33652688]
[1761762350118,0.09285776,111550.0,111540.0,0.75077831]
[1761762350324,0.09285776,111550.0,111540.0,0.33652688]
[1761762351417,0.09285776,111550.0,111540.0,0.75077831]
[1761762353234,0.09285776,111550.0,111540.0,1.16502974]
[1761762353629,0.09285776,111550.0,111540.0,0.33652688]
[1761762353836,0.09285776,111550.0,111540.0,1.16502974]
[1761762357378,0.09285776,111550.0,111540.0,0.80721917]
[1761762357819,0.09285776,111550.0,111540.0,0.33652688]
[1761762358029,0.09285776,111550.0,111540.0,0.80721917]
[1761762364187,0.09285776,111550.0,111540.0,1.14721917]
[1761762364407,0.17922752,111590.0,111580.0,0.17922959]
[1761762364636,0.17922758,111590.0,111580.0,0.2690626]
[1761762364849,0.26081056,111600.0,111580.0,0.3323726]
[1761762364850,0.57386974,111600.0,111580.0,0.3323726]
[1761762365054,0.20505752,111590.0,111580.0,0.2952126]
[1761762365265,0.58223373,111600.0,111580.0,0.2952126]
[1761762365481,0.6080639,111600.0,111590.0,0.17922752]
[1761762365691,0.59073818,111600.0,111590.0,0.17922752]
[1761762365909,0.25138803,111600.0,111590.0,0.17922752]
[1761762366123,0.59138803,111600.0,111590.0,0.17922752]
[1761762366780,0.59138803,111600.0,111580.0,0.3072226]
[1761762366984,0.001,111590.0,111580.0,0.3072226]
[1761762367187,0.59073818,111600.0,111590.0,0.17922752]
[1761762367397,0.26956752,111590.0,111580.0,0.001]
[1761762367609,0.17925478,111580.0,111560.0,0.23180157]
[1761762367822,0.25165478,111580.0,111570.0,0.17925965]
[1761762368209,0.20843478,111580.0,111570.0,0.22430965]
[1761762368451,0.02918,111580.0,111570.0,0.22430965]
[1761762369074,0.20842359,111580.0,111570.0,0.04505]
[1761762369288,0.25164359,111580.0,111560.0,0.27902058]
[1761762369496,0.02918,111570.0,111560.0,0.30677058]
[1761762369709,0.00896137,111590.0,111570.0,0.23915965]
[1761762369952,0.25219954,111590.0,111570.0,0.26790965]
[1761762370603,0.23815954,111590.0,111580.0,0.02875]
[1761762370806,0.28137954,111590.0,111570.0,0.32897866]
[1761762371023,0.28137954,111590.0,111570.0,0.32997866]
[1761762371230,0.28237954,111590.0,111570.0,0.32997866]
[1761762371439,0.20842359,111580.0,111570.0,0.08981901]
[1761762371647,0.25164359,111580.0,111570.0,0.08981901]
[1761762371861,0.25164359,111580.0,111570.0,0.26907866]
[1761762372078,0.25164359,111580.0,111550.0,0.05365]
[1761762372319,0.22344572,111560.0,111550.0,0.2691108]
[1761762372527,0.22344572,111560.0,111540.0,0.18832326]
[1761762372758,0.22815179,111550.0,111540.0,0.27814227]
[1761762373190,0.04886,111550.0,111540.0,0.30576227]
[1761762373399,0.19537572,111560.0,111550.0,0.17929179]
[1761762373627,0.54072014,111570.0,111550.0,0.3617508]
[1761762373836,0.20834572,111560.0,111550.0,0.3192508]
[1761762374046,0.25155572,111560.0,111550.0,0.2691108]
[1761762374259,0.20734572,111560.0,111550.0,0.3192508]
[1761762374486,0.02807,111560.0,111550.0,0.3192508]
[1761762374711,0.20734572,111560.0,111550.0,0.3192508]
[1761762375361,0.17927572,111560.0,111550.0,0.3617508]
[1761762375575,0.36446,111570.0,111550.0,0.3617508]
[1761762375790,0.57179028,111570.0,111560.0,0.02762]
[1761762376005,0.20734572,111560.0,111550.0,0.2916308]
[1761762376213,0.17927572,111560.0,111550.0,0.3341308]
[1761762376413,0.18027572,111560.0,111550.0,0.3617508]
[1761762376620,0.17927572,111560.0,111550.0,0.3617508]
[1761762376830,0.54072028,111570.0,111550.0,0.3617508]
[1761762377035,0.57079028,111570.0,111560.0,0.02762]
[1761762377239,0.56879028,111570.0,111560.0,0.02762]
[1761762378340,0.04953,111570.0,111560.0,0.20689572]
[1761762378522,0.57263242,111580.0,111560.0,0.24939572]
[1761762378986,0.52842242,111580.0,111570.0,0.22939965]
[1761762379200,0.51946025,111580.0,111570.0,0.26989965]
[1761762379844,0.20953025,111580.0,111570.0,0.22739965]
[1761762380072,0.25210814,111590.0,111570.0,0.22739965]
[1761762380281,0.18124359,111580.0,111570.0,0.22739965]
[1761762381114,0.25210814,111590.0,111570.0,0.26989965]
[1761762381355,0.20731359,111580.0,111570.0,0.22739965]
[1761762381564,0.02807,111580.0,111570.0,0.22739965]
[1761762381775,0.59210814,111590.0,111570.0,0.26989965]
[1761762381984,0.25152359,111580.0,111560.0,0.27805851]
[1761762382207,0.25152359,111580.0,111570.0,0.17925965]
[1761762382415,0.25152359,111580.0,111570.0,0.20687965]
[1761762382644,0.25152359,111580.0,111560.0,0.32055851]
[1761762382854,0.07228,111580.0,111570.0,0.17925965]
[1761762383066,0.02807,111580.0,111570.0,0.22939965]
[1761762383246,0.59210814,111590.0,111570.0,0.22939965]
[1761762383478,0.59210814,111590.0,111570.0,0.27189965]
[1761762383646,0.59210814,111590.0,111570.0,0.27289965]
[1761762384089,0.59210814,111590.0,111570.0,0.23039965]
[1761762384090,0.20731359,111580.0,111570.0,0.23039965]
[1761762384854,0.25152359,111580.0,111570.0,0.001]
[1761762385055,0.97988394,111580.0,111570.0,0.001]
[1761762385221,4.31988394,111580.0,111570.0,0.002]
[1761762385593,4.40970295,111580.0,111570.0,0.002]
[1761762385784,4.46512912,111580.0,111570.0,0.001]
[1761762386023,0.51929179,111550.0,111540.0,5e-05]
[1761762386206,1.33241214,111550.0,111540.0,5e-05]
[1761762387423,1.35873345,111550.0,111540.0,5e-05]
[1761762388622,4.35873345,111550.0,111540.0,5e-05]
[1761762389022,4.33341214,111550.0,111540.0,5e-05]
[1761762389226,1.33341214,111550.0,111540.0,5e-05]
[1761762389456,4.33341214,111550.0,111540.0,5e-05]
[1761762392175,0.56084179,111550.0,111540.0,0.02767]
[1761762392373,0.56084179,111550.0,111540.0,5e-05]
[1761762392571,0.56084179,111550.0,111540.0,0.20697787]
[1761762392880,0.56084179,111550.0,111540.0,0.02767]
[1761762393512,0.52029179,111550.0,111540.0,0.07017]
[1761762394047,0.52029179,111550.0,111540.0,0.24947787]
[1761762394251,1.39745732,111550.0,111540.0,5e-05]
[1761762394462,4.39745732,111550.0,111540.0,5e-05]
[1761762395813,1.32093214,111550.0,111540.0,5e-05]
[1761762396242,0.98093214,111550.0,111540.0,5e-05]
[1761762398391,1.07075115,111550.0,111540.0,5e-05]
[1761762398587,0.17937219,111500.0,111490.0,0.0004]
[1761762398773,0.93541254,111500.0,111490.0,0.0004]
[1761762398977,0.20705219,111500.0,111490.0,0.0004]
[1761762399182,0.20705219,111500.0,111490.0,0.00148421]
[1761762399981,0.20705219,111500.0,111490.0,0.00248421]
[1761762400486,0.20705219,111500.0,111490.0,0.05054421]
[1761762400611,0.20705219,111500.0,111490.0,0.22993249]
[1761762400812,0.17937219,111500.0,111490.0,0.27102249]
[1761762401064,0.25384119,111510.0,111490.0,0.27102249]
[1761762401269,0.17937219,111500.0,111490.0,0.3312015]
[1761762401446,0.20031611,111510.0,111500.0,0.20901219]
[1761762401643,0.17935611,111510.0,111500.0,0.20901219]
[1761762401848,0.22731316,111510.0,111500.0,0.02964]
[1761762402053,0.17937219,111500.0,111490.0,0.3312015]
[1761762402240,0.02768,111500.0,111490.0,0.2901115]
[1761762402437,0.20705219,111500.0,111490.0,0.3197515]
[1761762402642,0.20705219,111500.0,111490.0,0.2891115]
[1761762403110,0.20705219,111500.0,111490.0,0.3187515]
[1761762403519,0.20705219,111500.0,111490.0,0.09130322]
[1761762403720,0.25142219,111500.0,111490.0,0.2706915]
[1761762403926,0.20705219,111500.0,111490.0,0.3003315]
[1761762404130,0.17884316,111510.0,111500.0,0.17937219]
[1761762404335,0.17884316,111510.0,111500.0,0.20901219]
[1761762404740,0.17884316,111510.0,111500.0,0.02964]
[1761762404964,0.17884316,111510.0,111500.0,0.20901219]
[1761762405167,0.18833441,111520.0,111500.0,0.25010219]
[1761762405375,0.17935611,111510.0,111500.0,0.25010219]
[1761762405584,0.18833441,111520.0,111510.0,0.0093]
[1761762405789,0.18833441,111520.0,111510.0,0.03894]
[1761762405997,0.18833441,111520.0,111510.0,0.21829611]
[1761762406206,0.21601441,111520.0,111510.0,0.21829611]
[1761762406630,0.02768,111520.0,111510.0,0.21829611]
[1761762406853,0.19152199,111530.0,111510.0,0.34920512]
[1761762407064,0.17936199,111530.0,111520.0,0.02964]
[1761762407264,0.17934002,111520.0,111510.0,0.31956512]
[1761762407440,0.20702002,111520.0,111510.0,0.27847512]
[1761762407643,0.20702002,111520.0,111510.0,0.09911901]
[1761762408110,0.17934002,111520.0,111510.0,0.30911512]
[1761762408976,0.23572199,111530.0,111510.0,0.30911512]
[1761762409184,1.27704522,111540.0,111520.0,0.20898002]
[1761762409185,0.54868487,111540.0,111520.0,0.20898002]
[1761762409382,0.20868487,111540.0,111530.0,0.05047]
[1761762409622,0.17968514,111540.0,111530.0,0.22979394]
[1761762410004,0.17968514,111540.0,111530.0,0.27088394]
[1761762411302,0.00037727,111540.0,111530.0,0.36070295]
[1761762411726,0.00037727,111540.0,111530.0,0.36170295]
[1761762411923,0.17968514,111540.0,111530.0,0.36170295]
[1761762412256,0.00037727,111540.0,111530.0,0.36170295]
[1761762417597,0.00037727,111540.0,111530.0,0.32061295]
[1761762417736,0.02805727,111540.0,111530.0,0.32061295]
[1761762418369,0.02805727,111540.0,111530.0,0.27014295]
[1761762418601,0.98009549,111540.0,111530.0,0.27014295]
[1761762418771,0.25173514,111540.0,111530.0,0.27014295]
[1761762418988,1.0699145,111540.0,111530.0,0.001]
[1761762420507,4.0699145,111540.0,111530.0,0.001]
[1761762421561,0.17935611,111510.0,111500.0,0.18834079]
[1761762421687,0.21751611,111510.0,111500.0,0.2781598]
[1761762421894,0.03816,111510.0,111500.0,0.3077998]
[1761762422098,0.96256303,111520.0,111510.0,0.17935611]
[1761762422099,0.23420268,111520.0,111510.0,0.17935611]
[1761762422301,0.17934951,111530.0,111510.0,0.25909611]
[1761762422507,0.17934951,111530.0,111520.0,0.02964]
[1761762422715,0.20028394,111530.0,111520.0,0.20898002]
[1761762422921,0.22796394,111530.0,111520.0,0.02964]
[1761762423754,0.22796394,111530.0,111510.0,0.22945611]
[1761762423893,0.22796394,111530.0,111510.0,0.31927512]
[1761762424089,0.17934002,111520.0,111510.0,0.31927512]
[1761762424330,0.20702002,111520.0,111510.0,0.08981901]
[1761762424542,0.17937219,111500.0,111490.0,0.02259421]
[1761762424752,0.22693219,111500.0,111490.0,0.2918015]
[1761762424958,0.22693219,111500.0,111490.0,0.14205322]
[1761762425155,0.22693219,111500.0,111490.0,0.09130322]
[1761762425156,0.27130219,111500.0,111490.0,0.09130322]
[1761762425370,0.22693219,111500.0,111490.0,0.09130322]
[1761762425785,0.22693219,111500.0,111490.0,0.09430322]
[1761762426610,1.08948155,111500.0,111490.0,0.00448421]
[1761762427014,1.08948155,111500.0,111490.0,0.00148421]
[1761762427220,1.08948155,111500.0,111490.0,0.00248421]
[1761762428106,0.99966254,111500.0,111490.0,0.00248421]
[1761762428361,0.27130219,111500.0,111490.0,0.00248421]
[1761762428993,3.99966254,111500.0,111490.0,0.00248421]
[1761762429762,0.27130219,111500.0,111490.0,0.00248421]
[1761762429979,0.22693219,111500.0,111490.0,0.00248421]
[1761762430183,0.22693219,111500.0,111490.0,0.03861421]
[1761762431408,0.69833992,111500.0,111490.0,0.01041421]
[1761762432897,0.83063893,111500.0,111490.0,0.00248421]
[1761762433314,0.26941219,111500.0,111490.0,0.00248421]
[1761762433516,0.74081992,111500.0,111490.0,0.00248421]
[1761762435919,0.26941219,111500.0,111490.0,0.00248421]
[1761762436738,0.74081992,111500.0,111490.0,0.00248421]
[1761762439124,1.08081992,111500.0,111490.0,0.00248421]
[1761762439329,1.17063893,111500.0,111490.0,0.00248421]
[1761762439954,0.74081992,111500.0,111490.0,0.00248421]
[1761762440499,0.22693219,111500.0,111490.0,0.03656421]
[1761762440747,0.17937219,111500.0,111490.0,0.25637249]
[1761762441508,0.20755219,111500.0,111490.0,0.21595249]
[1761762441713,0.20755219,111500.0,111490.0,0.25637249]
[1761762441714,0.17937219,111500.0,111490.0,0.25637249]
[1761762441921,0.20755219,111500.0,111490.0,0.21595249]
[1761762442342,0.71329719,111510.0,111490.0,0.21595249]
[1761762442549,0.17937219,111500.0,111490.0,0.3461915]
[1761762442944,0.24188946,111510.0,111490.0,0.3461915]
[1761762443668,0.19940946,111510.0,111500.0,0.02708]
[1761762443854,0.22758946,111510.0,111500.0,0.02708]
[1761762444059,0.17937219,111500.0,111490.0,0.3191115]
[1761762444365,0.25003219,111500.0,111490.0,0.2706915]
[1761762444689,0.25003219,111500.0,111490.0,0.2969815]
[1761762444889,0.02818,111500.0,111490.0,0.2969815]
[1761762445087,0.17937219,111500.0,111490.0,0.3432115]
[1761762445288,0.001,111510.0,111500.0,0.17937219]
[1761762445489,0.18035611,111510.0,111500.0,0.24651219]
[1761762446155,0.17935611,111510.0,111500.0,0.24651219]
[1761762447165,0.17935611,111510.0,111500.0,0.24751219]
[1761762447591,0.24140394,111530.0,111510.0,0.17935611]
[1761762447791,0.22747394,111530.0,111520.0,0.02629]
[1761762448000,0.22747394,111530.0,111520.0,0.20563002]
[1761762448663,0.17934002,111520.0,111510.0,0.33109512]
[1761762448867,0.74100167,111530.0,111510.0,0.33109512]
[1761762449092,0.17934002,111520.0,111510.0,0.29024512]
[1761762449521,0.17934002,111520.0,111510.0,0.31653512]
[1761762449728,0.20653002,111520.0,111510.0,0.31653512]
[1761762449900,0.20653002,111520.0,111510.0,0.26917512]
[1761762449901,0.71905775,111520.0,111510.0,0.26917512]
[1761762450110,0.53971773,111520.0,111510.0,0.26917512]
[1761762450734,0.71905775,111520.0,111510.0,0.27017512]
[1761762451346,0.49859773,111520.0,111510.0,0.29646512]
[1761762451559,0.67793775,111520.0,111510.0,0.27017512]
[1761762451769,0.71905775,111520.0,111510.0,0.27017512]
[1761762452606,0.67793775,111520.0,111510.0,0.31753512]
[1761762452808,0.24765002,111520.0,111510.0,0.27017512]
[1761762453218,0.80887676,111520.0,111510.0,0.18035611]
[1761762453436,0.71905775,111520.0,111510.0,0.18035611]
[1761762454255,0.71905775,111520.0,111510.0,0.20664611]
[1761762454256,0.67793775,111520.0,111510.0,0.20664611]
[1761762454463,0.20653002,111520.0,111510.0,0.20664611]
[1761762454667,0.67793775,111520.0,111510.0,0.22662611]
[1761762455286,0.20653002,111520.0,111510.0,0.22662611]
[1761762455495,0.20653002,111520.0,111510.0,0.20033611]
[1761762455699,0.20653002,111520.0,111510.0,0.18035611]
[1761762455907,0.24765002,111520.0,111510.0,0.20664611]
[1761762456527,0.71905775,111520.0,111510.0,0.20664611]
[1761762457167,0.49859773,111520.0,111510.0,0.22662611]
[1761762457371,0.20653002,111520.0,111510.0,0.22662611]
[1761762459972,0.20028394,111530.0,111520.0,0.17934002]
[1761762460217,0.20698002,111520.0,111510.0,0.29015512]
[1761762460559,0.24786002,111520.0,111510.0,0.29015512]
[1761762460770,0.06852,111520.0,111510.0,0.29015512]
[1761762460972,0.02764,111520.0,111510.0,0.31641512]
[1761762461110,0.71257167,111530.0,111520.0,0.17934002]
[1761762461311,0.69933167,111530.0,111520.0,0.20560002]
[1761762461525,0.22792394,111530.0,111520.0,0.20560002]
[1761762461729,0.83003068,111530.0,111510.0,0.29015512]
[1761762461936,0.02764,111520.0,111510.0,0.28915512]
[1761762462183,0.24786002,111520.0,111510.0,0.28915512]
[1761762462323,0.71926775,111520.0,111510.0,0.26917512]
[1761762462524,0.24786002,111520.0,111510.0,0.26917512]
[1761762463413,0.71926775,111520.0,111510.0,0.27017512]
[1761762464403,0.76595797,111520.0,111510.0,0.001]
[1761762465801,0.71926775,111520.0,111510.0,0.001]
[1761762467091,0.71926775,111520.0,111510.0,0.18035611]
[1761762467296,0.71926775,111520.0,111510.0,0.001]
[1761762469369,0.69162775,111520.0,111510.0,0.001]
[1761762469556,0.71926775,111520.0,111510.0,0.001]
[1761762471037,0.17935611,111510.0,111500.0,0.17937111]
[1761762471240,0.66023384,111510.0,111500.0,0.17937111]
[1761762471438,0.68787384,111510.0,111500.0,0.02626]
[1761762471642,0.68787384,111510.0,111500.0,0.20563219]
[1761762471846,0.21646611,111510.0,111500.0,0.20563219]
[1761762472197,0.68787384,111510.0,111500.0,0.17937219]
[1761762472391,0.68787384,111510.0,111500.0,0.18037219]
[1761762472638,0.68787384,111510.0,111500.0,0.20663219]
[1761762473019,0.50851773,111510.0,111500.0,0.20663219]
[1761762473298,0.63120803,111510.0,111500.0,0.20663219]
[1761762474067,0.60356803,111510.0,111500.0,0.24611219]
[1761762474439,0.41474192,111510.0,111500.0,0.24611219]
[1761762474641,0.63496194,111520.0,111500.0,0.24611219]
[1761762474642,0.59408194,111520.0,111500.0,0.24611219]
[1761762474843,0.41474192,111510.0,111500.0,0.24611219]
[1761762475468,0.59409803,111510.0,111500.0,0.24611219]
[1761762476388,0.41474192,111510.0,111500.0,0.24611219]
[1761762476594,0.17934002,111520.0,111510.0,0.17935611]
[1761762476813,0.59408194,111520.0,111510.0,0.22600611]
[1761762477017,0.62172194,111520.0,111510.0,0.22600611]
[1761762477217,0.59408194,111520.0,111510.0,0.26548611]
[1761762477422,0.62172194,111520.0,111510.0,0.22600611]
[1761762477823,0.59408194,111520.0,111510.0,0.22600611]
[1761762478071,0.59508194,111520.0,111510.0,0.26548611]
[1761762478295,0.62272194,111520.0,111510.0,0.04665]
[1761762478505,0.17935611,111510.0,111500.0,0.2895812]
[1761762478698,0.62173803,111510.0,111500.0,0.3158412]
[1761762479219,0.62173803,111510.0,111500.0,0.2954512]
[1761762479394,0.62173803,111510.0,111500.0,0.2691912]
[1761762479547,0.44238192,111510.0,111500.0,0.2954512]
[1761762479932,0.62173803,111510.0,111500.0,0.2954512]
[1761762480184,0.66261803,111510.0,111500.0,0.2691912]
[1761762480382,0.66261803,111510.0,111500.0,0.17937219]
[1761762480606,0.66261803,111510.0,111490.0,0.19522067]
[1761762480821,0.44238192,111500.0,111490.0,0.31129968]
[1761762481386,0.02764,111500.0,111490.0,0.31129968]
[1761762481605,0.60304894,111520.0,111500.0,0.17937219]
[1761762481834,0.63068894,111520.0,111510.0,0.02626]
[1761762482767,1.04543086,111520.0,111510.0,0.02626]
[1761762483001,1.04643086,111520.0,111510.0,0.02626]
[1761762483715,0.63168894,111520.0,111510.0,0.02626]
[1761762483945,0.60404894,111520.0,111500.0,0.17937219]
[1761762484161,0.59409803,111510.0,111500.0,0.17937219]
[1761762484357,0.17935611,111510.0,111500.0,0.17937219]
[1761762484569,0.59409803,111510.0,111500.0,0.17937219]
[1761762484787,0.17937219,111500.0,111490.0,0.09668322]
[1761762484984,1.00885603,111500.0,111490.0,0.18087249]
[1761762485190,1.00885603,111500.0,111490.0,0.00148421]
[1761762485634,1.00885603,111500.0,111490.0,0.18087249]
[1761762485839,1.09867504,111500.0,111490.0,0.18087249]
[1761762486052,1.00885603,111500.0,111490.0,0.18287249]
[1761762486463,0.59411411,111500.0,111490.0,0.18387249]
[1761762486673,0.59411411,111500.0,111490.0,0.00448421]
[1761762486880,0.59411411,111500.0,111490.0,0.18387249]
[1761762487113,1.00885603,111500.0,111490.0,0.00448421]
[1761762487287,0.17937219,111500.0,111490.0,0.18387249]
[1761762487735,0.17937219,111500.0,111490.0,0.18187249]
[1761762487984,0.18037219,111500.0,111490.0,0.18087249]
[1761762488638,0.17937219,111500.0,111490.0,0.18087249]
[1761762488813,0.18037219,111500.0,111490.0,0.18087249]
[1761762489602,0.65176945,111500.0,111490.0,0.18087249]
[1761762489800,0.74158846,111500.0,111490.0,0.18087249]
[1761762490222,0.65176945,111500.0,111490.0,0.18087249]
[1761762492453,0.65176945,111500.0,111490.0,0.00148421]
[1761762492901,0.47239726,111500.0,111490.0,0.18087249]
[1761762493126,0.65176945,111500.0,111490.0,0.18087249]
[1761762493312,0.001,111500.0,111490.0,0.00148421]
[1761762493533,0.90977671,111500.0,111490.0,0.00148421]
[1761762493714,0.99959572,111500.0,111490.0,0.18087249]
[1761762493928,0.99959572,111500.0,111490.0,0.00148421]
[1761762494131,0.99959572,111500.0,111490.0,0.18087249]
[1761762494535,0.2701912,111500.0,111490.0,0.18087249]
[1761762494732,0.001,111500.0,111490.0,0.18087249]
[1761762494980,0.001,111500.0,111490.0,0.2706915]
[1761762496360,0.001,111500.0,111490.0,0.2716915]
[1761762496982,4.16039465,111530.0,111520.0,0.17934002]
[1761762497360,3.0,111520.0,111510.0,0.1793424]
[1761762497992,1.16039465,111530.0,111520.0,0.17934002]
[1761762498413,1.16239465,111530.0,111520.0,0.17934002]
[1761762498619,1.16239465,111530.0,111510.0,0.1793424]
[1761762498881,1.16239465,111530.0,111520.0,0.17934002]
[1761762499093,0.2447,111530.0,111520.0,0.17934002]
[1761762499276,0.2427,111530.0,111520.0,0.17934002]
[1761762500006,0.4220246,111530.0,111510.0,0.1793424]
[1761762500256,0.72940452,111520.0,111510.0,0.1793424]
[1761762500523,0.72940452,111520.0,111510.0,0.17935611]
[1761762500761,0.90974454,111520.0,111510.0,0.17935611]
[1761762500970,0.90874454,111520.0,111510.0,0.17935611]
[1761762502011,0.90974454,111520.0,111500.0,0.18831592]
[1761762502225,0.72940452,111510.0,111500.0,0.18831592]
[1761762502447,0.72420397,111510.0,111500.0,0.18831592]
[1761762502632,0.72420397,111510.0,111500.0,0.17937219]